bitfinex-derivatives/quotes_BTCF0:USTF0_20241227
["timestamp","ask_amount","ask_price","bid_price","bid_amount"]
[1735324347883,0.0343,94672.0,94671.0,1.51168222]
[1735324348586,0.0353,94672.0,94671.0,1.51168222]
[1735324349185,0.0363,94672.0,94671.0,1.51168222]
[1735324349489,0.006,94672.0,94671.0,1.56457222]
[1735324350688,0.005,94672.0,94671.0,1.56357222]
[1735324351385,0.003,94672.0,94671.0,1.56357222]
[1735324355391,0.001,94672.0,94671.0,1.56357222]
[1735324355686,0.003,94672.0,94671.0,1.56357222]
[1735324357281,0.002,94672.0,94671.0,1.56357222]
[1735324357481,0.003,94672.0,94671.0,1.56357222]
[1735324358391,0.3608,94689.0,94688.0,0.05288]
[1735324358998,0.3608,94689.0,94688.0,1.55288]
[1735324359484,0.3658,94689.0,94688.0,1.55288]
[1735324360185,0.3608,94689.0,94688.0,1.55388]
[1735324360385,0.3648,94689.0,94688.0,1.55388]
[1735324360785,0.3648,94689.0,94688.0,1.56735452]
[1735324360786,0.004,94689.0,94688.0,1.56735452]
[1735324362492,0.0315,94693.0,94692.0,0.052878]
[1735324362697,0.22103203,94693.0,94692.0,0.052878]
[1735324363102,0.18953203,94693.0,94692.0,0.052878]
[1735324364002,0.18953203,94697.0,94692.0,0.053878]
[1735324364291,0.18953203,94697.0,94696.0,0.052876]
[1735324365296,0.05143814,94698.0,94696.0,0.052876]
[1735324366490,0.05643814,94698.0,94696.0,0.052876]
[1735324366898,0.05643814,94698.0,94696.0,0.053876]
[1735324367399,0.05643814,94698.0,94696.0,0.052876]
[1735324367600,0.16314133,94698.0,94696.0,0.053876]
[1735324370400,0.13150785,94698.0,94696.0,0.053876]
[1735324373304,0.005,94698.0,94696.0,0.053876]
[1735324375601,0.13157158,94698.0,94696.0,0.053876]
[1735324376604,0.13157158,94698.0,94689.0,0.05288]
[1735324376801,0.3608,94695.0,94689.0,0.05288]
[1735324378003,0.413676,94695.0,94689.0,0.05288]
[1735324378201,0.05144109,94694.0,94689.0,0.05288]
[1735324379003,0.052881,94687.0,94684.0,1.50128]
[1735324379206,0.0944,94686.0,94684.0,1.5130725]
[1735324380505,0.0944,94686.0,94684.0,1.5669545]
[1735324380506,0.0964,94686.0,94684.0,1.5669545]
[1735324380708,0.05144109,94685.0,94684.0,1.5669545]
[1735324381305,0.05144109,94685.0,94684.0,1.5140725]
[1735324381708,0.05144109,94685.0,94684.0,1.501]
[1735324381895,0.10432309,94685.0,94684.0,0.001]
[1735324382300,0.05444109,94685.0,94684.0,1.5]
[1735324382504,0.05544109,94685.0,94684.0,1.501]
[1735324385294,0.004,94685.0,94684.0,1.501]
[1735324385700,0.003,94685.0,94684.0,1.501]
[1735324385901,0.002,94685.0,94684.0,1.5]
[1735324386108,0.003,94685.0,94684.0,1.5]
[1735324388299,0.001,94685.0,94684.0,1.5]
[1735324388497,0.002,94685.0,94684.0,1.5]
[1735324388811,0.003,94685.0,94684.0,1.5]
[1735324389211,0.001,94685.0,94684.0,1.5]
[1735324389407,0.003,94685.0,94684.0,1.5]
[1735324389712,0.002,94685.0,94684.0,1.5]
[1735324389908,0.003,94685.0,94684.0,1.5]
[1735324390106,0.1,94700.0,94699.0,0.052874]
[1735324391008,0.052878,94693.0,94691.0,0.3608]
[1735324391205,0.413678,94693.0,94685.0,0.052882]
[1735324392300,0.3608,94693.0,94684.0,0.32875674]
[1735324392509,0.12671987,94690.0,94683.0,0.18825426]
[1735324392702,0.0307,94689.0,94685.0,0.001]
[1735324393110,0.0307,94689.0,94683.0,0.18825426]
[1735324393310,0.052881,94687.0,94685.0,0.001]
[1735324393614,0.0307,94689.0,94687.0,0.052881]
[1735324393999,0.0307,94689.0,94685.0,0.001]
[1735324394000,0.05144395,94688.0,94685.0,0.001]
[1735324394613,0.05144395,94688.0,94681.0,0.413684]
[1735324394812,0.05144395,94688.0,94685.0,0.001]
[1735324395201,0.19013518,94686.0,94682.0,0.052883]
[1735324395407,0.19013518,94686.0,94685.0,0.001]
[1735324396122,0.05344395,94688.0,94685.0,0.001]
[1735324396308,0.002,94686.0,94682.0,0.001]
[1735324396513,0.002,94686.0,94683.0,0.052883]
[1735324396909,0.002,94686.0,94684.0,0.052882]
[1735324397105,0.002,94686.0,94684.0,1.552882]
[1735324398007,0.05144395,94692.0,94691.0,0.052879]
[1735324399015,0.19010069,94692.0,94691.0,0.052879]
[1735324399217,0.19010069,94692.0,94691.0,0.053879]
[1735324399614,0.19210069,94692.0,94691.0,0.053879]
[1735324400210,0.002,94692.0,94691.0,0.053879]
[1735324400613,0.002,94692.0,94691.0,0.052879]
[1735324400811,0.002,94692.0,94691.0,0.053879]
[1735324402316,0.3608,94692.0,94691.0,0.053879]
[1735324402513,0.3628,94692.0,94691.0,0.053879]
[1735324404421,0.002,94692.0,94691.0,0.053879]
[1735324404922,0.002,94692.0,94691.0,0.052879]
[1735324405125,0.002,94692.0,94691.0,0.053879]
[1735324406220,0.002,94692.0,94691.0,0.052879]
[1735324406412,0.002,94692.0,94691.0,0.053879]
[1735324407931,0.002,94692.0,94691.0,0.052879]
[1735324408118,0.002,94692.0,94691.0,0.053879]
[1735324410321,0.3628,94692.0,94691.0,0.001]
[1735324410514,0.052881,94687.0,94686.0,0.18825426]
[1735324411627,0.054881,94687.0,94686.0,0.18825426]
[1735324411831,0.002,94687.0,94677.0,0.18983846]
[1735324412029,0.052883,94684.0,94677.0,0.18983846]
[1735324412227,0.0329,94683.0,94677.0,0.18983846]
[1735324412418,0.085783,94683.0,94677.0,0.18983846]
[1735324412821,0.085783,94683.0,94677.0,0.24272446]
[1735324413028,0.12676954,94681.0,94677.0,0.24272446]
[1735324414522,0.12676954,94681.0,94677.0,0.18983846]
[1735324414720,0.12776954,94681.0,94679.0,0.052885]
[1735324414931,0.12976954,94681.0,94679.0,0.052885]
[1735324415522,0.12976954,94681.0,94680.0,0.3608]
[1735324415731,0.003,94681.0,94680.0,0.3931]
[1735324415932,0.003,94681.0,94680.0,1.8931]
[1735324415933,0.001,94681.0,94680.0,1.8931]
[1735324416129,0.003,94681.0,94680.0,1.8931]
[1735324416327,0.004,94681.0,94680.0,1.8931]
[1735324417129,0.003,94681.0,94680.0,1.8931]
[1735324417533,0.002,94681.0,94680.0,1.8931]
[1735324419435,0.002,94681.0,94680.0,1.8608]
[1735324419637,0.002,94681.0,94680.0,0.3608]
[1735324419834,0.052886,94679.0,94677.0,0.0015842]
[1735324420639,0.05144655,94678.0,94677.0,0.0015842]
[1735324422046,0.05144655,94678.0,94677.0,0.0544702]
[1735324422047,0.05244655,94678.0,94677.0,0.0544702]
[1735324423339,0.12976068,94678.0,94677.0,0.0544702]
[1735324424237,0.003,94678.0,94677.0,0.0544702]
[1735324425942,0.003,94678.0,94677.0,1.5544702]
[1735324428048,0.003,94678.0,94677.0,1.552886]
[1735324430639,0.003,94678.0,94674.0,0.01231849]
[1735324430939,0.003,94678.0,94663.0,0.18825426]
[1735324431145,0.10772846,94673.0,94663.0,0.18825426]
[1735324431345,0.052892,94667.0,94663.0,0.18825426]
[1735324431649,0.0323,94666.0,94663.0,0.18825426]
[1735324431840,0.052888,94674.0,94666.0,0.052892]
[1735324432147,0.052888,94674.0,94663.0,0.0120334]
[1735324432148,0.15845085,94670.0,94663.0,0.0120334]
[1735324432336,0.15845085,94670.0,94660.0,0.3608]
[1735324432740,0.15845085,94670.0,94663.0,0.001]
[1735324432945,0.15845085,94670.0,94667.0,0.052892]
[1735324433956,0.15845085,94671.0,94667.0,0.052892]
[1735324434745,0.15845085,94671.0,94668.0,0.052891]
[1735324434947,0.001,94670.0,94668.0,0.052891]
[1735324436454,0.001,94671.0,94668.0,0.052891]
[1735324436847,0.001,94671.0,94668.0,0.3608]
[1735324437057,0.15845085,94677.0,94668.0,0.3608]
[1735324437551,0.15845085,94677.0,94676.0,0.413687]
[1735324438247,0.15945085,94677.0,94676.0,0.413687]
[1735324438457,0.001,94677.0,94676.0,0.413687]
[1735324439040,0.002,94677.0,94676.0,0.413687]
[1735324439540,0.002,94677.0,94676.0,0.73987131]
[1735324439744,0.001,94677.0,94676.0,0.68698431]
[1735324439957,0.001,94677.0,94676.0,0.73987131]
[1735324440457,0.10772846,94690.0,94689.0,0.05288]
[1735324440657,0.0319,94695.0,94689.0,0.05288]
[1735324441555,0.002,94690.0,94689.0,0.05388]
[1735324442453,0.001,94690.0,94689.0,0.05388]
[1735324443051,0.0329,94695.0,94692.0,0.052878]
[1735324443857,0.0329,94695.0,94689.0,0.001]
[1735324444158,0.0319,94695.0,94693.0,0.052877]
[1735324444859,0.0329,94695.0,94693.0,0.052877]
[1735324445555,0.0339,94695.0,94693.0,0.052877]
[1735324446148,0.0514356,94694.0,94693.0,0.052877]
[1735324446550,0.0514356,94694.0,94693.0,0.053877]
[1735324447157,0.0514356,94694.0,94693.0,1.553877]
[1735324447350,0.002,94695.0,94693.0,1.553877]
[1735324447549,0.001,94694.0,94693.0,1.553877]
[1735324448359,0.002,94694.0,94693.0,1.553877]
[1735324449150,0.12658152,94695.0,94693.0,1.553877]
[1735324449352,0.12658152,94695.0,94694.0,0.3608]
[1735324449661,0.24763072,94700.0,94699.0,0.052874]
[1735324449962,0.24763072,94700.0,94699.0,1.913674]
[1735324450148,4e-07,94702.0,94701.0,0.052873]
[1735324450553,4e-07,94702.0,94701.0,0.352873]
[1735324450854,0.17885074,94717.0,94701.0,0.352873]
[1735324451056,0.14469074,94717.0,94716.0,0.774465]
[1735324451653,0.14469074,94717.0,94716.0,2.274465]
[1735324452064,0.0319,94727.0,94716.0,0.7216]
[1735324452359,0.0319,94727.0,94717.0,0.052864]
[1735324452653,0.0319,94727.0,94715.0,0.25069574]
[1735324452654,0.3608,94726.0,94715.0,0.20079574]
[1735324452858,0.3608,94726.0,94707.0,0.24024661]
[1735324453061,0.10772846,94722.0,94707.0,0.24024661]
[1735324453263,0.3608,94726.0,94713.0,0.052866]
[1735324453459,0.413659,94726.0,94717.0,0.001]
[1735324453946,0.413659,94726.0,94713.0,0.052866]
[1735324454145,0.3608,94726.0,94713.0,0.052866]
[1735324454350,0.052861,94723.0,94713.0,0.052866]
[1735324455562,0.052868,94710.0,94704.0,0.01210482]
[1735324455762,0.3608,94707.0,94681.0,0.3608]
[1735324455962,0.3608,94695.0,94677.0,0.37526655]
[1735324456258,0.052886,94678.0,94677.0,0.34976655]
[1735324456457,0.052886,94678.0,94646.0,0.0327]
[1735324456458,0.3608,94678.0,94660.0,0.37477926]
[1735324456657,0.413695,94661.0,94660.0,0.09333553]
[1735324456958,0.052903,94647.0,94646.0,0.43781097]
[1735324457147,0.3608,94647.0,94642.0,0.052906]
[1735324457355,0.3608,94647.0,94639.0,0.5003554]
[1735324457555,0.10772846,94650.0,94644.0,0.052904]
[1735324458067,0.05147163,94647.0,94644.0,0.052904]
[1735324458956,0.05147163,94647.0,94640.0,1.50128]
[1735324459152,0.05147163,94647.0,94645.0,0.052904]
[1735324459663,0.002,94647.0,94645.0,0.052904]
[1735324459962,0.10772846,94660.0,94643.0,0.3608]
[1735324460165,0.46912847,94670.0,94653.0,0.3608]
[1735324460354,0.46908847,94670.0,94653.0,0.3608]
[1735324461671,0.10772846,94663.0,94653.0,0.3608]
[1735324461964,0.46852846,94670.0,94661.0,0.052895]
[1735324462164,0.46908847,94670.0,94661.0,0.052895]
[1735324462367,0.00258538,94666.0,94661.0,0.052895]
[1735324462575,0.00258538,94666.0,94663.0,0.052894]
[1735324462758,0.00258538,94666.0,94664.0,0.052893]
[1735324462956,0.00158538,94666.0,94664.0,0.052893]
[1735324463262,0.00158538,94666.0,94665.0,1.5]
[1735324463463,0.00258538,94666.0,94665.0,1.8608]
[1735324464460,0.2211207,94693.0,94665.0,1.8608]
[1735324464461,0.10772846,94690.0,94665.0,1.8608]
[1735324464661,0.10772846,94690.0,94677.0,0.052886]
[1735324465165,0.2211207,94693.0,94686.0,0.052881]
[1735324465868,0.00060001,94699.0,94692.0,0.052878]
[1735324466064,0.052871,94705.0,94694.0,0.3608]
[1735324466455,0.10772846,94710.0,94694.0,0.3608]
[1735324466658,0.10772846,94710.0,94695.0,0.052876]
[1735324468362,0.10772846,94710.0,94695.0,0.053876]
[1735324469261,0.10772846,94710.0,94695.0,0.001]
[1735324469453,0.052873,94701.0,94695.0,0.001]
[1735324469654,0.052873,94701.0,94695.0,0.002]
[1735324469969,0.052873,94701.0,94690.0,0.052879]
[1735324470357,0.3608,94704.0,94692.0,0.052878]
[1735324471172,0.3608,94704.0,94693.0,0.052877]
[1735324471762,0.3608,94704.0,94699.0,0.052874]
[1735324471957,0.3608,94704.0,94694.0,0.3608]
[1735324472172,0.3608,94704.0,94702.0,0.052872]
[1735324472673,0.18894637,94710.0,94709.0,0.052868]
[1735324472860,0.13904637,94710.0,94709.0,0.052868]
[1735324473066,0.08914637,94710.0,94709.0,0.052868]
[1735324473373,0.08914637,94710.0,94709.0,1.552868]
[1735324473576,0.08914637,94716.0,94715.0,0.052865]
[1735324473774,0.08914637,94716.0,94715.0,0.413665]
[1735324474472,0.052853,94737.0,94720.0,0.052862]
[1735324474668,0.10772846,94730.0,94720.0,0.052862]
[1735324474860,0.052854,94735.0,94717.0,0.052864]
[1735324475065,0.052854,94735.0,94724.0,0.05286]
[1735324475863,0.10772846,94740.0,94715.0,1.8608]
[1735324476068,0.003,94735.0,94730.0,0.10772846]
[1735324476263,0.003,94735.0,94734.0,0.052855]
[1735324476473,0.003,94735.0,94734.0,0.413655]
[1735324477478,0.001,94735.0,94734.0,0.413655]
[1735324477674,0.002,94735.0,94734.0,0.413655]
[1735324478272,0.001,94735.0,94734.0,0.3608]
[1735324478576,0.002,94735.0,94734.0,0.3608]
[1735324478780,0.001,94735.0,94734.0,0.3608]
[1735324478981,0.002,94735.0,94734.0,0.3618]
[1735324480581,0.002,94735.0,94734.0,0.414655]
[1735324481471,0.001,94735.0,94734.0,0.413655]
[1735324481676,0.002,94735.0,94734.0,0.414655]
[1735324482681,0.05341405,94735.0,94734.0,0.414655]
[1735324484382,0.05341405,94735.0,94734.0,0.053855]
[1735324488175,0.05341405,94735.0,94734.0,1.553855]
[1735324488975,0.05341405,94735.0,94731.0,0.0328]
[1735324489978,0.05341405,94735.0,94734.0,1.552855]
[1735324490385,0.002,94735.0,94734.0,1.552855]
[1735324490986,0.001,94735.0,94734.0,1.552855]
[1735324491189,0.003,94735.0,94734.0,1.552855]
[1735324491576,0.001,94735.0,94734.0,1.553855]
[1735324491783,0.003,94735.0,94734.0,1.553855]
[1735324494290,0.36238389,94754.0,94734.0,1.553855]
[1735324494483,0.36238389,94754.0,94750.0,0.052846]
[1735324494484,0.58350459,94754.0,94750.0,0.052846]
[1735324494689,0.58350459,94754.0,94751.0,0.052845]
[1735324495088,0.58350459,94754.0,94752.0,0.052844]
[1735324495391,0.22270459,94754.0,94753.0,0.0329]
[1735324495580,0.22270459,94754.0,94753.0,0.0642]
[1735324495781,0.22470459,94754.0,94753.0,1.5642]
[1735324496384,0.00358389,94754.0,94753.0,1.5642]
[1735324496685,0.3608,94762.0,94760.0,0.05284]
[1735324497097,0.3608,94762.0,94753.0,0.0652]
[1735324497289,0.3608,94762.0,94753.0,0.086744]
[1735324497590,0.3608,94762.0,94752.0,0.001]
[1735324497591,0.3608,94754.0,94752.0,0.001]
[1735324497893,0.3608,94754.0,94748.0,0.052847]
[1735324498087,0.3608,94754.0,94749.0,0.052846]
[1735324498393,0.3608,94754.0,94751.0,0.052845]
[1735324498593,0.3608,94754.0,94753.0,0.001]
[1735324499090,0.18925177,94756.0,94754.0,0.052843]
[1735324499478,0.18925177,94756.0,94754.0,0.083543]
[1735324499893,0.18925177,94763.0,94758.0,0.052841]
[1735324500187,0.3608,94761.0,94751.0,0.052845]
[1735324500386,0.052841,94759.0,94748.0,0.001]
[1735324500589,0.36136001,94761.0,94754.0,0.052843]
[1735324500785,0.3608,94761.0,94754.0,0.053843]
[1735324501196,0.18925177,94758.0,94754.0,0.053843]
[1735324501393,0.18925177,94758.0,94754.0,0.052843]
[1735324501798,0.18925177,94758.0,94755.0,0.052843]
[1735324501991,0.18925177,94758.0,94757.0,0.052842]
[1735324502389,0.05139948,94760.0,94754.0,0.001]
[1735324502698,0.052841,94759.0,94754.0,0.001]
[1735324503003,0.05139948,94760.0,94754.0,0.001]
[1735324503004,0.052843,94755.0,94754.0,0.001]
[1735324503292,0.05139948,94760.0,94754.0,0.001]
[1735324503689,0.2211207,94756.0,94754.0,0.001]
[1735324504190,0.2211207,94756.0,94752.0,0.052844]
[1735324504390,0.2211207,94756.0,94754.0,0.001]
[1735324504795,0.2211207,94756.0,94752.0,0.052844]
[1735324504989,0.2211207,94756.0,94742.0,1.37316678]
[1735324505184,0.2211207,94756.0,94741.0,0.05285]
[1735324505390,0.2211207,94756.0,94738.0,0.3608]
[1735324505585,0.3608,94753.0,94738.0,0.19154895]
[1735324505792,0.3608,94753.0,94750.0,0.052845]
[1735324505993,0.3608,94753.0,94751.0,1.5]
[1735324507100,0.05139948,94752.0,94742.0,0.05285]
[1735324507295,0.3608,94743.0,94742.0,0.05285]
[1735324507801,0.3608,94743.0,94742.0,1.55285]
[1735324508700,0.3608,94743.0,94742.0,1.55385]
[1735324508701,0.41219948,94743.0,94742.0,1.55385]
[1735324509490,0.41219948,94743.0,94742.0,1.56344278]
[1735324512806,0.3608,94743.0,94742.0,1.56344278]
[1735324513190,0.413645,94751.0,94742.0,1.56344278]
[1735324513801,0.3608,94743.0,94742.0,1.51059278]
[1735324515309,0.3608,94743.0,94742.0,1.50959278]
[1735324515604,0.41220776,94743.0,94742.0,1.51059278]
[1735324516902,0.41220776,94743.0,94742.0,1.50959278]
[1735324517106,0.41220776,94743.0,94742.0,1.51059278]
[1735324520912,0.05140776,94743.0,94742.0,1.51059278]
[1735324522003,0.2729276,94750.0,94749.0,0.052846]
[1735324522501,0.1232276,94750.0,94749.0,0.413646]
[1735324522812,0.25270937,94756.0,94755.0,0.052843]
[1735324523108,0.25270937,94756.0,94755.0,1.552843]
[1735324523497,0.3608,94766.0,94764.0,0.052838]
[1735324524210,0.3608,94766.0,94756.0,0.052842]
[1735324524404,0.3608,94766.0,94755.0,1.5]
[1735324524405,0.3608,94766.0,94759.0,0.052841]
[1735324526013,0.3608,94766.0,94756.0,0.001]
[1735324526215,0.3608,94757.0,94756.0,0.001]
[1735324526598,0.3914,94757.0,94756.0,0.001]
[1735324526801,0.3914,94757.0,94746.0,0.052848]
[1735324527309,0.3608,94747.0,94746.0,0.052848]
[1735324527998,0.3608,94747.0,94746.0,0.053848]
[1735324528502,0.3608,94747.0,94746.0,0.06136984]
[1735324529914,0.3608,94747.0,94746.0,1.56136984]
[1735324532814,0.413647,94747.0,94746.0,0.00852184]
[1735324535513,0.3608,94747.0,94746.0,0.06136984]
[1735324536217,0.3608,94747.0,94746.0,1.56136984]
[1735324537205,0.3608,94747.0,94746.0,1.50852184]
[1735324537418,0.3608,94747.0,94746.0,0.00852184]
[1735324539021,0.60223158,94747.0,94746.0,0.00852184]
[1735324541518,0.60223158,94747.0,94746.0,0.001]
[1735324541721,0.41220868,94747.0,94746.0,0.001]
[1735324542327,0.41220868,94747.0,94720.0,0.10772846]
[1735324542328,0.81775347,94747.0,94716.0,0.053244]
[1735324542625,0.052863,94719.0,94716.0,0.00038]
[1735324542926,0.413663,94719.0,94716.0,0.00038]
[1735324543511,0.413663,94719.0,94716.0,0.00973156]
[1735324543716,0.3608,94719.0,94716.0,0.00038]
[1735324543925,0.3608,94719.0,94718.0,0.001]
[1735324544427,0.3608,94719.0,94716.0,0.00438]
[1735324545418,0.3608,94719.0,94716.0,0.00238]
[1735324545723,0.3608,94719.0,94716.0,0.00038]
[1735324546216,0.052864,94718.0,94716.0,0.00038]
[1735324546616,0.3608,94719.0,94694.0,0.116277]
[1735324546617,0.05287,94708.0,94694.0,0.116277]
[1735324546922,0.10772846,94704.0,94695.0,0.052876]
[1735324547118,0.3608,94707.0,94694.0,0.00943365]
[1735324547315,0.052872,94702.0,94688.0,0.0318]
[1735324547521,0.052872,94702.0,94691.0,0.052878]
[1735324547820,0.0327,94703.0,94694.0,1.5]
[1735324547821,0.3608,94696.0,94694.0,1.5]
[1735324548229,0.3608,94696.0,94690.0,0.052879]
[1735324548618,0.3608,94696.0,94694.0,0.008]
[1735324550020,0.3608,94696.0,94694.0,0.001]
[1735324550926,0.052876,94695.0,94694.0,0.001]
[1735324551615,0.3608,94696.0,94694.0,0.001]
[1735324552325,0.413676,94696.0,94694.0,0.001]
[1735324552529,0.413676,94696.0,94677.0,0.052886]
[1735324552530,0.052878,94692.0,94677.0,0.052886]
[1735324552719,0.3608,94685.0,94677.0,0.052886]
[1735324552919,0.3608,94685.0,94681.0,1.5329]
[1735324553115,0.3608,94685.0,94681.0,0.0329]
[1735324553326,0.3608,94685.0,94681.0,0.04241182]
[1735324555326,0.3608,94717.0,94695.0,0.052876]
[1735324555527,0.3608,94708.0,94696.0,0.0621]
[1735324556032,0.48720122,94708.0,94701.0,0.052873]
[1735324556334,0.48776123,94708.0,94702.0,0.0325]
[1735324556533,0.48776123,94708.0,94702.0,0.085372]
[1735324556832,0.00358432,94704.0,94702.0,0.085372]
[1735324557533,0.00358432,94704.0,94702.0,0.086372]
[1735324557834,0.00358432,94704.0,94703.0,1.5]
[1735324558625,0.3608,94708.0,94703.0,1.5]
[1735324558824,0.3608,94708.0,94707.0,0.05287]
[1735324559331,0.12640122,94722.0,94707.0,0.3608]
[1735324559525,0.12640122,94722.0,94721.0,0.052862]
[1735324559729,0.15828559,94729.0,94721.0,0.413662]
[1735324559929,0.15828559,94734.0,94721.0,0.413662]
[1735324560123,0.15828559,94734.0,94733.0,0.052855]
[1735324561629,0.10772846,94750.0,94737.0,0.052853]
[1735324562238,0.3608,94752.0,94737.0,1.913653]
[1735324562430,0.15828559,94758.0,94748.0,0.052847]
[1735324562624,0.3608,94751.0,94748.0,0.052847]
[1735324563344,0.3608,94751.0,94740.0,0.10772846]
[1735324563534,0.3608,94751.0,94749.0,0.052846]
[1735324563727,0.1588456,94761.0,94748.0,0.001]
[1735324563927,0.15828559,94761.0,94760.0,0.05284]
[1735324564530,0.19002593,94778.0,94776.0,0.052831]
[1735324564735,0.22167591,94789.0,94788.0,0.052825]
[1735324564939,0.20556189,94789.0,94788.0,0.052825]
[1735324566244,0.10056001,94800.0,94788.0,0.3618]
[1735324566545,0.3608,94818.0,94803.0,0.052816]
[1735324566740,0.3608,94808.0,94788.0,0.37143396]
[1735324567036,0.3608,94799.0,94788.0,0.37143396]
[1735324567249,0.3608,94799.0,94788.0,0.42425796]
[1735324567539,0.3608,94799.0,94790.0,0.052823]
[1735324568037,0.3608,94799.0,94788.0,0.3618]
[1735324568344,0.3608,94790.0,94788.0,0.001]
[1735324568544,0.0309,94789.0,94788.0,0.001]
[1735324568833,0.0309,94789.0,94781.0,0.00954526]
[1735324569042,0.3608,94782.0,94780.0,0.00158256]
[1735324569433,0.0309,94789.0,94781.0,0.3608]
[1735324569735,0.0309,94789.0,94788.0,0.053825]
[1735324570133,0.0309,94789.0,94788.0,0.052825]
[1735324572441,0.0319,94789.0,94788.0,0.053825]
[1735324572643,0.0319,94789.0,94788.0,0.001]
[1735324574845,0.0309,94789.0,94783.0,0.052827]
[1735324575036,0.0322,94788.0,94780.0,0.00158256]
[1735324575638,0.3608,94785.0,94780.0,0.00158256]
[1735324575837,0.3608,94785.0,94771.0,0.413634]
[1735324576244,0.3608,94785.0,94780.0,0.001]
[1735324576646,0.3608,94785.0,94781.0,0.052829]
[1735324577741,0.3618,94785.0,94781.0,0.052829]
[1735324578141,0.3618,94785.0,94780.0,0.001]
[1735324578345,0.3628,94785.0,94781.0,0.001]
[1735324578645,0.3628,94785.0,94784.0,0.052827]
[1735324579353,0.3628,94785.0,94784.0,1.552827]
[1735324579755,0.002,94785.0,94784.0,1.552827]
[1735324581054,0.0309,94789.0,94785.0,0.052826]
[1735324581459,0.0309,94789.0,94786.0,0.052825]
[1735324582163,0.0319,94789.0,94788.0,0.052825]
[1735324582361,0.001,94789.0,94788.0,0.052825]
[1735324582862,0.001,94789.0,94787.0,0.052825]
[1735324584378,0.001,94789.0,94788.0,0.001]
[1735324584865,0.0317,94801.0,94787.0,0.052825]
[1735324585066,0.001,94789.0,94787.0,0.053825]
[1735324585362,0.001,94789.0,94787.0,0.052825]
[1735324585560,0.001,94789.0,94788.0,0.053824]
[1735324586963,0.001,94789.0,94788.0,0.052824]
[1735324587164,0.0327,94801.0,94789.0,0.052824]
[1735324587564,0.0317,94801.0,94789.0,0.052824]
[1735324588362,0.0327,94801.0,94794.0,0.052821]
[1735324590467,0.0327,94801.0,94794.0,0.053821]
[1735324591377,0.0327,94801.0,94799.0,0.052818]
[1735324591867,0.0327,94801.0,94800.0,1.5]
[1735324592464,0.001,94801.0,94800.0,1.5]
[1735324592653,0.001,94801.0,94799.0,0.052818]
[1735324594165,0.001,94801.0,94799.0,0.001]
[1735324594765,0.0336,94811.0,94801.0,0.052817]
[1735324595467,0.001,94801.0,94800.0,0.052818]
[1735324596668,0.001,94801.0,94799.0,0.001]
[1735324596868,0.3608,94801.0,94794.0,0.00952115]
[1735324597058,0.3608,94801.0,94792.0,0.413622]
[1735324597775,0.3608,94801.0,94792.0,0.42352647]
[1735324597977,0.3618,94801.0,94800.0,0.001]
[1735324598171,0.414617,94801.0,94800.0,0.001]
[1735324598966,0.3618,94801.0,94800.0,0.001]
[1735324599468,0.41318086,94801.0,94800.0,0.001]
[1735324600467,0.41218086,94801.0,94793.0,0.052822]
[1735324600670,0.41318086,94801.0,94793.0,0.052822]
[1735324601075,0.41318086,94801.0,94794.0,1.5]
[1735324601371,0.41218086,94801.0,94800.0,0.001]
[1735324601576,0.41318086,94801.0,94800.0,0.001]
[1735324601964,0.41318086,94801.0,94794.0,1.50144]
[1735324602170,0.41318086,94801.0,94794.0,1.5]
[1735324602475,0.15815477,94796.0,94794.0,1.5]
[1735324603063,0.0325,94795.0,94794.0,1.5]
[1735324603469,0.15815477,94796.0,94794.0,1.5]
[1735324603772,0.12488277,94810.0,94809.0,0.052813]
[1735324604971,0.12588277,94810.0,94809.0,0.053813]
[1735324605165,0.12588277,94810.0,94809.0,1.553813]
[1735324605472,0.001,94810.0,94809.0,1.501]
[1735324605665,0.001,94810.0,94809.0,0.001]
[1735324606067,0.001,94810.0,94807.0,0.25079879]
[1735324606278,0.001,94810.0,94807.0,0.19539879]
[1735324607178,0.001,94810.0,94801.0,0.18729015]
[1735324607381,0.3608,94807.0,94801.0,0.18729015]
[1735324607676,0.0308,94806.0,94801.0,0.18729015]
[1735324607973,0.0308,94806.0,94801.0,0.1970735]
[1735324608280,0.0308,94806.0,94802.0,0.052817]
[1735324608869,0.0308,94806.0,94801.0,0.001]
[1735324609475,0.052816,94804.0,94801.0,0.001]
[1735324610782,0.05137825,94803.0,94802.0,0.001]
[1735324611467,0.05137825,94803.0,94794.0,0.06280734]
[1735324611673,0.0352,94802.0,94801.0,0.001]
[1735324612075,0.0352,94802.0,94794.0,0.06280734]
[1735324612377,0.0352,94801.0,94794.0,0.06280734]
[1735324612884,0.08657825,94801.0,94794.0,0.06280734]
[1735324613081,0.08657825,94801.0,94795.0,0.052821]
[1735324614579,0.05137825,94800.0,94795.0,0.052821]
[1735324614783,0.05137825,94800.0,94795.0,0.053821]
[1735324615077,0.05137825,94800.0,94795.0,0.001]
[1735324615279,0.05137825,94800.0,94798.0,0.052819]
[1735324615679,0.05237825,94800.0,94798.0,0.052819]
[1735324617286,0.05137825,94799.0,94798.0,0.052819]
[1735324618089,0.05137825,94799.0,94798.0,0.053819]
[1735324618475,0.001,94799.0,94798.0,0.053819]
[1735324619373,0.3618,94799.0,94798.0,0.001]
[1735324620783,0.41318385,94799.0,94798.0,0.001]
[1735324620981,0.41218385,94799.0,94794.0,0.00998634]
[1735324621280,0.05282,94797.0,94789.0,1.50144]
[1735324621470,0.41318385,94799.0,94789.0,1.5]
[1735324622191,0.052821,94796.0,94794.0,0.001]